[Event "POL-chT 1 Liga 2019"]
[Site "Dzwirzyno"]
[Date "2019.09.07"]
[Round "1.14"]
[White "Godzwon, Iwo"]
[Black "Zylka, Stanislaw"]
[Result "1/2-1/2"]
[ECO "B49"]
[WhiteElo "2265"]
[BlackElo "2338"]
[Annotator "ChessBase"]
[PlyCount "55"]
[EventDate "2019.09.07"]
[EventType "team-tourn"]
[EventCountry "POL"]
[SourceTitle "playchess.com"]
[Source "ChessBase"]
[SourceQuality "1"]
[TimeControl "40/5400+30:1800+30"]

1. e4 {[%emt 0:00:00]} c5 {[%emt 0:00:00]} 2. Nf3 {[%emt 0:00:00]} e6 {[%emt 0:00:00]} 3. d4 {[%emt 0:00:00]} cxd4 {[%emt 0:00:09]} 4. Nxd4 {[%emt 0:00:00]} Nc6 {[%emt 0:00:14]} 5. Nc3 {[%emt 0:00:00]} Qc7 {[%emt 0:00:07]} 6. Be3 {[%emt 0:00:00]} a6 {[%emt 0:00:25]} 7. Be2 {[%emt 0:00:00]} Nf6 {[%emt 0:00:17]} 8. O-O {[%emt 0:00:00]} Be7 {[%emt 0:00:13]} 9. f4 {[%emt 0:00:00]} d6 {[%emt 0:00:12]} 10. Qe1 {[%emt 0:01:08]} Nxd4 {[%emt 0:00:48]} 11. Bxd4 {[%emt 0:00:04]} b5 {[%emt 0:00:30]} 12. a3 {[%emt 0:00:03]} O-O {[%emt 0:00:32]} 13. Kh1 {[%emt 0:00:05]} Nd7 {[%emt 0:00:37]} 14. Qg3 {[%emt 0:05:35]} Bf6 {[%emt 0:00:14]} 15. Bxf6 {[%emt 0:03:52]} Nxf6 {[%emt 0:00:04]} 16. Bd3 {[%emt 0:00:16]} Bb7 {[%emt 0:01:38]} 17. Rae1 {[%emt 0:02:11]} Rad8 {[%emt 0:06:30]} 18. Qh4 {[%emt 0:07:00]} h6 {[%emt 0:05:15]} 19. Re3 {[%emt 0:01:40]} Qc5 {[%emt 0:02:14]} 20. Qe1 {[%emt 0:12:14]} Bc6 {[%emt 0:14:19]} 21. h3 {[%emt 0:07:05]} a5 {[%emt 0:07:13]} 22. e5 {[%emt 0:03:54]} dxe5 {[%emt 0:07:20]} 23. Rxe5 {[%emt 0:00:08]} Qb6 {[%emt 0:10:02]} 24. Bxb5 {[%emt 0:05:10]} Nd7 {[%emt 0:04:00]} 25. Rh5 {[%emt 0:00:26]} Nf6 {[%emt 0:13:56]} 26. Re5 {[%emt 0:00:39]} Nd7 {[%emt 0:00:21]} 27. Rh5 {[%emt 0:24:19]} Nf6 {[%emt 0:02:59]} 28. Re5 {[%emt 0:00:07]} 1/2-1/2

[Event "POL-chT 1 Liga 2019"]
[Site "Dzwirzyno"]
[Date "2019.09.07"]
[Round "1.15"]
[White "Koziol, Kamil"]
[Black "Wacior, Maciej"]
[Result "1/2-1/2"]
[ECO "B11"]
[WhiteElo "2292"]
[BlackElo "2116"]
[Annotator "ChessBase"]
[PlyCount "58"]
[EventDate "2019.09.07"]
[EventType "team-tourn"]
[EventCountry "POL"]
[SourceTitle "playchess.com"]
[Source "ChessBase"]
[SourceQuality "1"]
[TimeControl "40/5400+30:1800+30"]

1. e4 {[%emt 0:00:00]} c6 {[%emt 0:00:00]} 2. Nc3 {[%emt 0:00:05]} d5 {[%emt 0:00:00]} 3. Nf3 {[%emt 0:00:27]} Bg4 {[%emt 0:00:15]} 4. h3 {[%emt 0:01:13]} Bxf3 {[%emt 0:00:04]} 5. Qxf3 {[%emt 0:00:12]} Nf6 {[%emt 0:00:04]} 6. d3 {[%emt 0:00:20]} e6 {[%emt 0:01:41]} 7. Bd2 {[%emt 0:01:31]} Be7 {[%emt 0:07:34]} 8. e5 {[%emt 0:16:45]} Nfd7 {[%emt 0:00:11]} 9. Qg3 {[%emt 0:01:04]} Rg8 {[%emt 0:02:36]} 10. h4 {[%emt 0:08:53]} Qc7 {[%emt 0:01:15]} 11. f4 {[%emt 0:15:45]} c5 {[%emt 0:05:46]} 12. O-O-O {[%emt 0:05:23]} a6 {[%emt 0:02:13]} 13. Be2 {[%emt 0:06:40]} Nc6 {[%emt 0:04:11]} 14. h5 {[%emt 0:02:48]} O-O-O {[%emt 0:06:11]} 15. Bg4 {[%emt 0:02:00]} g5 {[%emt 0:10:01]} 16. f5 {[%emt 0:12:16]} Qxe5 {[%emt 0:00:21]} 17. Qh3 {[%emt 0:00:21]} exf5 {[%emt 0:05:30]} 18. Bxf5 {[%emt 0:01:17]} h6 {[%emt 0:04:14]} 19. Rde1 {[%emt 0:03:47]} Qd6 {[%emt 0:00:51]} 20. Qf3 {[%emt 0:00:30]} d4 {[%emt 0:02:48]} 21. Nd5 {[%emt 0:06:42]} Kb8 {[%emt 0:09:02]} 22. Nxe7 {[%emt 0:05:52]} Nxe7 {[%emt 0:00:30]} 23. Bxd7 {[%emt 0:00:57]} Rxd7 {[%emt 0:02:07]} 24. Qxf7 {[%emt 0:00:25]} Rc8 {[%emt 0:00:09]} 25. Rhf1 {[%emt 0:02:25]} Rc6 {[%emt 0:03:08]} 26. Re4 {[%emt 0:02:11]} Ka7 {[%emt 0:01:07]} 27. Rfe1 {[%emt 0:00:51]} Nd5 {[%emt 0:00:26]} 28. Qf5 {[%emt 0:00:23]} Qc7 {[%emt 0:08:01]} 29. Re6 {[%emt 0:01:23]} Rdd6 {[%emt 0:08:52]} 1/2-1/2

[Event "POL-chT 1 Liga 2019"]
[Site "Dzwirzyno"]
[Date "2019.09.07"]
[Round "1.16"]
[White "Kowalski, Maciej"]
[Black "Nowak, Mikolaj"]
[Result "0-1"]
[ECO "A06"]
[WhiteElo "2095"]
[BlackElo "2262"]
[Annotator "ChessBase"]
[PlyCount "40"]
[EventDate "2019.09.07"]
[EventType "team-tourn"]
[EventCountry "POL"]
[SourceTitle "playchess.com"]
[Source "ChessBase"]
[SourceQuality "1"]
[TimeControl "40/5400+30:1800+30"]

1. Nf3 g6 {[%emt 0:00:00]} 2. g3 {[%emt 0:00:00]} Bg7 {[%emt 0:01:16]} 3. Bg2 {[%emt 0:00:00]} e5 4. d3 {[%emt 0:02:30]} d5 {[%emt 0:05:46]} 5. O-O {[%emt 0:00:26]} Ne7 {[%emt 0:04:02]} 6. e4 {[%emt 0:11:36]} c6 {[%emt 0:02:50]} 7. Qe2 {[%emt 0:06:53]} Qc7 {[%emt 0:05:43]} 8. d4 {[%emt 0:16:43]} dxe4 {[%emt 0:16:31]} 9. Nxe5 {[%emt 0:01:02]} f5 {[%emt 0:03:00]} 10. Bf4 {[%emt 0:13:38]} Qd8 {[%emt 0:08:28]} 11. Nc3 {[%emt 0:01:52]} Be6 {[%emt 0:09:03]} 12. Rad1 {[%emt 0:00:23]} O-O {[%emt 0:04:58]} 13. f3 {[%emt 0:04:45]} Qb6 {[%emt 0:10:59]} 14. fxe4 {[%emt 0:11:47]} Qxb2 {[%emt 0:04:11]} 15. exf5 {[%emt 0:01:30]} Nxf5 {[%emt 0:02:15]} 16. Nxg6 {[%emt 0:06:18]} Re8 {[%emt 0:03:36]} 17. Ne5 {[%emt 0:13:44]} Qxc3 {[%emt 0:01:00]} 18. Be4 Nd7 {[%emt 0:03:54]} 19. Rd3 {[%emt 0:03:09]} Qa5 {[%emt 0:04:10]} 20. Qh5 Nf6 0-1

[Event "POL-chT 1 Liga 2019"]
[Site "Dzwirzyno"]
[Date "2019.09.07"]
[Round "1.17"]
[White "Tomaszewski, Kacper"]
[Black "Rogala, Milosz"]
[Result "1/2-1/2"]
[ECO "D44"]
[WhiteElo "2363"]
[BlackElo "1788"]
[Annotator "ChessBase"]
[PlyCount "63"]
[EventDate "2019.09.07"]
[EventType "team-tourn"]
[EventCountry "POL"]
[SourceTitle "playchess.com"]
[Source "ChessBase"]
[SourceQuality "1"]
[TimeControl "40/5400+30:1800+30"]

1. d4 {[%emt 0:00:00]} d5 {[%emt 0:00:00]} 2. c4 {[%emt 0:00:00]} c6 {[%emt 0:00:00]} 3. Nc3 {[%emt 0:00:00]} Nf6 {[%emt 0:00:19]} 4. Nf3 {[%emt 0:00:11]} e6 {[%emt 0:00:13]} 5. Bg5 {[%emt 0:00:42]} dxc4 {[%emt 0:00:53]} 6. e4 {[%emt 0:02:21]} b5 {[%emt 0:00:10]} 7. a4 {[%emt 0:00:05]} Bb4 {[%emt 0:13:56]} 8. Be2 {[%emt 0:02:16]} h6 {[%emt 0:04:34]} 9. Bxf6 {[%emt 0:00:27]} Qxf6 {[%emt 0:00:56]} 10. O-O {[%emt 0:00:24]} O-O {[%emt 0:06:51]} 11. Qc2 {[%emt 0:00:37]} a6 {[%emt 0:04:38]} 12. axb5 {[%emt 0:10:50]} Bxc3 {[%emt 0:00:38]} 13. Qxc3 {[%emt 0:00:09]} cxb5 {[%emt 0:00:15]} 14. b3 {[%emt 0:00:06]} Bb7 {[%emt 0:08:20]} 15. e5 {[%emt 0:23:41]} Qf4 {[%emt 0:08:16]} 16. bxc4 {[%emt 0:02:45]} bxc4 {[%emt 0:00:43]} 17. Qe3 {[%emt 0:07:52]} Qg4 {[%emt 0:07:10]} 18. Rfc1 {[%emt 0:12:10]} Nd7 {[%emt 0:04:05]} 19. h3 {[%emt 0:04:23]} Qf5 {[%emt 0:04:15]} 20. Bxc4 {[%emt 0:11:42]} Bxf3 {[%emt 0:02:06]} 21. Bd3 {[%emt 0:00:07]} Qh5 {[%emt 0:01:27]} 22. Qxf3 {[%emt 0:00:12]} Qxf3 {[%emt 0:00:31]} 23. gxf3 {[%emt 0:00:05]} a5 {[%emt 0:00:11]} 24. Rc7 {[%emt 0:00:18]} Nb6 {[%emt 0:00:28]} 25. Be4 {[%emt 0:00:07]} Rad8 {[%emt 0:01:37]} 26. Rc6 {[%emt 0:02:51]} Nd5 {[%emt 0:00:43]} 27. Rxa5 {[%emt 0:03:08]} Nf4 {[%emt 0:00:25]} 28. Rd6 {[%emt 0:06:30]} Nxh3+ {[%emt 0:01:16]} 29. Kf1 {[%emt 0:01:00]} Nf4 {[%emt 0:00:52]} 30. Ke1 {[%emt 0:03:02]} Rb8 {[%emt 0:02:17]} 31. Ra2 {[%emt 0:00:12]} Rfc8 {[%emt 0:03:31]} 32. Kd2 {[%emt 0:00:28]} 1/2-1/2

[Event "POL-chT 1 Liga 2019"]
[Site "Dzwirzyno"]
[Date "2019.09.07"]
[Round "1.18"]
[White "Gosciniak, Maria"]
[Black "Cieslak, Wiktoria"]
[Result "1-0"]
[ECO "B90"]
[WhiteElo "2132"]
[BlackElo "2063"]
[Annotator "ChessBase"]
[PlyCount "95"]
[EventDate "2019.09.07"]
[EventType "team-tourn"]
[EventCountry "POL"]
[SourceTitle "playchess.com"]
[Source "ChessBase"]
[SourceQuality "1"]
[TimeControl "40/5400+30:1800+30"]

1. e4 {[%emt 0:00:00]} c5 {[%emt 0:00:00]} 2. Nf3 {[%emt 0:00:00]} d6 {[%emt 0:00:00]} 3. d4 {[%emt 0:00:00]} cxd4 {[%emt 0:00:00]} 4. Nxd4 {[%emt 0:00:00]} Nf6 {[%emt 0:00:00]} 5. Nc3 {[%emt 0:00:00]} a6 {[%emt 0:00:00]} 6. f3 {[%emt 0:00:05]} e5 {[%emt 0:00:08]} 7. Nb3 {[%emt 0:00:04]} Be6 {[%emt 0:00:14]} 8. Be3 {[%emt 0:00:05]} Be7 {[%emt 0:00:45]} 9. Qd2 {[%emt 0:00:20]} h5 {[%emt 0:00:12]} 10. Be2 {[%emt 0:01:46]} Nbd7 {[%emt 0:00:41]} 11. O-O {[%emt 0:01:24]} O-O {[%emt 0:01:41]} 12. a4 {[%emt 0:10:21]} Rc8 {[%emt 0:04:06]} 13. a5 {[%emt 0:08:50]} Re8 {[%emt 0:07:34]} 14. Rfd1 {[%emt 0:04:29]} Qc7 {[%emt 0:07:06]} 15. Bf1 {[%emt 0:04:05]} Nf8 {[%emt 0:08:59]} 16. Qf2 {[%emt 0:08:50]} Ng6 {[%emt 0:02:42]} 17. Rd2 {[%emt 0:06:22]} h4 {[%emt 0:05:10]} 18. Nc1 {[%emt 0:11:45]} Qc6 {[%emt 0:01:21]} 19. Bd3 {[%emt 0:10:21]} d5 {[%emt 0:11:02]} 20. exd5 {[%emt 0:02:00]} Nxd5 {[%emt 0:03:58]} 21. Be4 {[%emt 0:08:20]} Red8 {[%emt 0:01:46]} 22. N1e2 {[%emt 0:13:02]} Ngf4 {[%emt 0:06:12]} 23. Nxf4 {[%emt 0:08:15]} exf4 {[%emt 0:00:07]} 24. Bb6 {[%emt 0:00:55]} Qc4 {[%emt 0:14:44]} 25. Bxd5 {[%emt 0:00:15]} Bxd5 {[%emt 0:00:52]} 26. Rad1 {[%emt 0:00:27]} Bb4 {[%emt 0:05:42]} 27. Rxd5 {[%emt 0:00:38]} Rxd5 {[%emt 0:01:36]} 28. Nxd5 {[%emt 0:00:06]} Bc5 {[%emt 0:01:01]} 29. Bxc5 {[%emt 0:00:05]} Qxc5 {[%emt 0:00:04]} 30. Qxc5 {[%emt 0:00:58]} Rxc5 {[%emt 0:00:05]} 31. Nxf4 {[%emt 0:00:53]} Rxc2 {[%emt 0:00:17]} 32. b4 {[%emt 0:00:36]} Rc4 {[%emt 0:00:12]} 33. Nd3 {[%emt 0:00:17]} f6 {[%emt 0:00:20]} 34. Rd2 {[%emt 0:00:07]} Kf7 {[%emt 0:00:14]} 35. Rb2 {[%emt 0:00:07]} Rc6 {[%emt 0:00:26]} 36. Nc5 {[%emt 0:00:47]} b6 {[%emt 0:00:06]} 37. Nxa6 {[%emt 0:00:09]} bxa5 {[%emt 0:00:08]} 38. b5 {[%emt 0:00:03]} Rb6 {[%emt 0:00:12]} 39. Nc5 {[%emt 0:00:05]} Ke7 {[%emt 0:00:21]} 40. Na4 {[%emt 0:00:00]} Rb7 {[%emt 0:00:00]} 41. b6 {[%emt 0:00:40]} Kd6 {[%emt 0:00:26]} 42. Rb5 {[%emt 0:00:13]} g5 {[%emt 0:01:03]} 43. Rxa5 {[%emt 0:00:05]} Rb8 {[%emt 0:00:09]} 44. Kf2 {[%emt 0:02:16]} Kc6 {[%emt 0:00:09]} 45. Rf5 {[%emt 0:00:28]} Rf8 {[%emt 0:00:53]} 46. Rc5+ {[%emt 0:01:11]} Kb7 {[%emt 0:00:05]} 47. Rc7+ {[%emt 0:00:08]} Ka6 {[%emt 0:00:07]} 48. b7 {[%emt 0:00:27]} 1-0

[Event "POL-chT 1 Liga 2019"]
[Site "Dzwirzyno"]
[Date "2019.09.07"]
[Round "1.21"]
[White "Plichta, Kamil"]
[Black "Grabarczyk, Miroslaw"]
[Result "1/2-1/2"]
[ECO "A14"]
[WhiteElo "2349"]
[BlackElo "2374"]
[Annotator "ChessBase"]
[PlyCount "105"]
[EventDate "2019.09.07"]
[EventType "team-tourn"]
[EventCountry "POL"]
[SourceTitle "playchess.com"]
[Source "ChessBase"]
[SourceQuality "1"]
[TimeControl "40/5400+30:1800+30"]

1. c4 {[%emt 0:00:00]} e6 {[%emt 0:00:59]} 2. Nf3 {[%emt 0:00:00]} d5 {[%emt 0:00:36]} 3. g3 {[%emt 0:00:00]} Nf6 {[%emt 0:01:04]} 4. Bg2 {[%emt 0:00:00]} Be7 {[%emt 0:01:02]} 5. O-O {[%emt 0:00:16]} O-O {[%emt 0:01:01]} 6. b3 {[%emt 0:00:02]} c5 {[%emt 0:05:17]} 7. Bb2 {[%emt 0:00:14]} b6 {[%emt 0:03:07]} 8. e3 {[%emt 0:00:08]} Bb7 {[%emt 0:01:32]} 9. Nc3 {[%emt 0:00:21]} dxc4 {[%emt 0:06:30]} 10. bxc4 {[%emt 0:01:33]} Nc6 {[%emt 0:02:57]} 11. Qe2 {[%emt 0:00:05]} Rc8 {[%emt 0:01:07]} 12. Rad1 {[%emt 0:02:51]} Na5 {[%emt 0:10:11]} 13. d3 {[%emt 0:00:42]} a6 {[%emt 0:01:11]} 14. Ne1 {[%emt 0:01:51]} Bxg2 {[%emt 0:06:51]} 15. Nxg2 {[%emt 0:00:26]} Qd7 {[%emt 0:00:13]} 16. a4 {[%emt 0:00:59]} Rfd8 {[%emt 0:06:03]} 17. f4 {[%emt 0:03:03]} Nc6 {[%emt 0:07:02]} 18. g4 {[%emt 0:02:38]} Ne8 {[%emt 0:02:38]} 19. f5 {[%emt 0:01:57]} Nd6 {[%emt 0:01:52]} 20. Nf4 {[%emt 0:04:26]} Rb8 {[%emt 0:05:16]} 21. Nh5 {[%emt 0:03:08]} g6 {[%emt 0:05:06]} 22. Ng3 {[%emt 0:02:36]} b5 {[%emt 0:08:59]} 23. axb5 {[%emt 0:00:59]} axb5 {[%emt 0:00:06]} 24. cxb5 {[%emt 0:02:31]} Nb4 {[%emt 0:01:56]} 25. fxg6 {[%emt 0:16:10]} fxg6 {[%emt 0:02:17]} 26. Ba1 {[%emt 0:15:25]} Rf8 {[%emt 0:10:01]} 27. Rxf8+ {[%emt 0:07:51]} Rxf8 {[%emt 0:00:09]} 28. Nce4 {[%emt 0:02:57]} Nxe4 {[%emt 0:02:01]} 29. Nxe4 {[%emt 0:02:03]} e5 {[%emt 0:00:40]} 30. Bxe5 {[%emt 0:02:59]} Qxb5 {[%emt 0:00:22]} 31. Qb2 {[%emt 0:08:29]} Qd7 {[%emt 0:01:06]} 32. Qb3+ {[%emt 0:08:58]} Qd5 {[%emt 0:00:51]} 33. Qc4 {[%emt 0:00:25]} Rd8 {[%emt 0:02:33]} 34. Qxd5+ {[%emt 0:02:14]} Rxd5 {[%emt 0:00:05]} 35. Bf6 {[%emt 0:00:07]} Kf7 {[%emt 0:01:40]} 36. Bxe7 {[%emt 0:00:20]} Kxe7 {[%emt 0:00:05]} 37. Nf2 {[%emt 0:00:54]} Re5 {[%emt 0:02:30]} 38. e4 {[%emt 0:02:31]} Re6 {[%emt 0:00:09]} 39. Rc1 {[%emt 0:01:31]} Rf6 {[%emt 0:01:11]} 40. Rc4 {[%emt 0:00:00]} Rd6 {[%emt 0:00:00]} 41. Rxc5 {[%emt 0:05:41]} Nxd3 {[%emt 0:00:55]} 42. Rc7+ {[%emt 0:01:07]} Kf6 {[%emt 0:02:40]} 43. Rxh7 {[%emt 0:02:01]} Rd4 {[%emt 0:01:07]} 44. Nxd3 {[%emt 0:06:39]} Rxd3 {[%emt 0:00:09]} 45. Kf2 {[%emt 0:00:23]} Kg5 {[%emt 0:03:17]} 46. e5 {[%emt 0:03:34]} Kf4 {[%emt 0:07:23]} 47. e6 {[%emt 0:01:40]} Rf3+ {[%emt 0:00:17]} 48. Kg2 {[%emt 0:00:34]} Re3 {[%emt 0:00:06]} 49. e7 {[%emt 0:01:37]} Kxg4 {[%emt 0:00:07]} 50. Rf7 {[%emt 0:01:49]} g5 {[%emt 0:01:58]} 51. Kf2 {[%emt 0:02:51]} Re6 {[%emt 0:02:20]} 52. h3+ {[%emt 0:03:27]} Kh5 {[%emt 0:00:30]} 53. e8=N {[%emt 0:01:26]} 1/2-1/2

[Event "POL-chT 1 Liga 2019"]
[Site "Dzwirzyno"]
[Date "2019.09.07"]
[Round "1.22"]
[White "Sabuk, Piotr"]
[Black "Reza, Wojciech"]
[Result "1/2-1/2"]
[ECO "A28"]
[WhiteElo "2397"]
[BlackElo "2293"]
[Annotator "ChessBase"]
[PlyCount "119"]
[EventDate "2019.09.07"]
[EventType "team-tourn"]
[EventCountry "POL"]
[SourceTitle "playchess.com"]
[Source "ChessBase"]
[SourceQuality "1"]
[TimeControl "40/5400+30:1800+30"]

1. c4 {[%emt 0:00:00]} e5 {[%emt 0:02:05]} 2. Nc3 {[%emt 0:00:00]} Nf6 {[%emt 0:00:32]} 3. Nf3 {[%emt 0:00:00]} Nc6 {[%emt 0:00:14]} 4. e3 {[%emt 0:00:00]} Bb4 {[%emt 0:13:18]} 5. Qc2 {[%emt 0:00:07]} O-O {[%emt 0:01:40]} 6. Nd5 {[%emt 0:00:33]} Re8 {[%emt 0:33:23]} 7. Qf5 {[%emt 0:00:27]} d6 {[%emt 0:02:58]} 8. Nxf6+ {[%emt 0:00:05]} Qxf6 {[%emt 0:01:29]} 9. Qxf6 {[%emt 0:00:17]} gxf6 {[%emt 0:00:04]} 10. a3 {[%emt 0:18:42]} Bc5 {[%emt 0:00:47]} 11. b4 {[%emt 0:00:36]} Bb6 {[%emt 0:01:34]} 12. Bb2 {[%emt 0:00:51]} f5 {[%emt 0:11:55]} 13. c5 {[%emt 0:07:37]} dxc5 {[%emt 0:00:09]} 14. b5 {[%emt 0:00:40]} Na5 {[%emt 0:04:55]} 15. Nxe5 {[%emt 0:01:22]} f4 {[%emt 0:03:55]} 16. Be2 {[%emt 0:13:07]} Bf5 {[%emt 0:03:16]} 17. O-O {[%emt 0:15:49]} Rad8 {[%emt 0:09:35]} 18. d3 {[%emt 0:12:54]} f6 {[%emt 0:01:42]} 19. Ng4 {[%emt 0:00:31]} Bxg4 20. Bxg4 {[%emt 0:00:01]} fxe3 {[%emt 0:03:08]} 21. fxe3 {[%emt 0:00:55]} c4 {[%emt 0:00:53]} 22. Bxf6 {[%emt 0:14:16]} Rxd3 {[%emt 0:00:29]} 23. Kh1 {[%emt 0:01:07]} Nb3 {[%emt 0:01:05]} 24. Rad1 {[%emt 0:06:10]} Nd2 {[%emt 0:01:00]} 25. Rfe1 {[%emt 0:01:31]} c3 {[%emt 0:01:47]} 26. Bxc3 {[%emt 0:01:40]} Rxc3 {[%emt 0:00:18]} 27. Rxd2 {[%emt 0:00:02]} Rxa3 {[%emt 0:00:46]} 28. Rd7 {[%emt 0:02:28]} Raxe3 {[%emt 0:00:22]} 29. Rxe3 {[%emt 0:00:49]} Rxe3 {[%emt 0:00:06]} 30. g3 {[%emt 0:00:32]} Re5 {[%emt 0:00:24]} 31. Rd5 {[%emt 0:00:28]} Rxd5 {[%emt 0:01:03]} 32. Be6+ {[%emt 0:00:02]} Kf8 {[%emt 0:00:06]} 33. Bxd5 {[%emt 0:00:03]} a6 {[%emt 0:00:08]} 34. bxa6 {[%emt 0:00:47]} bxa6 {[%emt 0:00:03]} 35. Kg2 {[%emt 0:00:17]} Ke7 {[%emt 0:00:17]} 36. Kf3 {[%emt 0:00:19]} Kd6 {[%emt 0:00:12]} 37. Bg8 {[%emt 0:00:13]} h6 {[%emt 0:00:08]} 38. g4 {[%emt 0:03:06]} Ke5 {[%emt 0:00:40]} 39. h4 {[%emt 0:00:06]} Kd4 {[%emt 0:01:31]} 40. g5 {[%emt 0:00:00]} hxg5 {[%emt 0:00:00]} 41. hxg5 {[%emt 0:03:40]} Kd3 {[%emt 0:18:51]} 42. Bd5 {[%emt 0:17:16]} Be3 {[%emt 0:03:46]} 43. g6 {[%emt 0:05:21]} Bh6 {[%emt 0:00:07]} 44. Bc6 {[%emt 0:01:58]} a5 {[%emt 0:01:04]} 45. Kf2 {[%emt 0:00:33]} Bg7 {[%emt 0:07:45]} 46. Kf3 {[%emt 0:00:55]} Be5 {[%emt 0:01:10]} 47. Kf2 {[%emt 0:00:31]} Bf6 {[%emt 0:01:40]} 48. Kf3 {[%emt 0:00:08]} Bg7 {[%emt 0:00:28]} 49. Kf2 {[%emt 0:01:39]} Bh6 {[%emt 0:00:38]} 50. Kf3 {[%emt 0:00:09]} Kc4 {[%emt 0:00:56]} 51. Ke4 {[%emt 0:02:02]} Bg7 {[%emt 0:00:13]} 52. Bd5+ {[%emt 0:01:35]} Kc3 {[%emt 0:00:44]} 53. Bc6 {[%emt 0:00:19]} Kc4 {[%emt 0:00:22]} 54. Bd5+ {[%emt 0:00:15]} Kc3 {[%emt 0:00:43]} 55. Bc6 {[%emt 0:00:06]} Kb3 {[%emt 0:00:26]} 56. Kd3 {[%emt 0:01:30]} a4 {[%emt 0:00:22]} 57. Bd5+ {[%emt 0:00:41]} Kb2 {[%emt 0:00:39]} 58. Kc4 {[%emt 0:00:33]} c6 {[%emt 0:00:30]} 59. Be6 {[%emt 0:00:02]} Bf8 {[%emt 0:00:12]} 60. g7 {[%emt 0:00:43]} 1/2-1/2